[Event "Titled Tuesday Blitz August 16 Early 2022"]
[White "Aldokhin, Ivan"]
[Black "Kuznetsova, Olga"]
[WhiteFideId "24115720"]
[BlackFideId "4191323"]
[WhiteElo "2246"]
[BlackElo "2134"]
[Result "1-0"]
[Round "08"]
[TimeControl "180+2"]
[Date "2022.08.18"]
[WhiteClock "0:00:00"]
[BlackClock "0:00:00"]

1. e4 {[%clk 0:00:00]}  e5 {[%clk 0:00:00]} 2. Nf3 {[%clk 0:00:00]}  Nf6 {[%clk 0:00:00]} 3. d4 {[%clk 0:00:00]}  Nxe4 {[%clk 0:00:00]} 4. Bd3 {[%clk 0:00:00]}  d5 {[%clk 0:00:00]} 5. Nxe5 {[%clk 0:00:00]}  Nd7 {[%clk 0:00:00]} 6. Qe2 {[%clk 0:00:00]}  Nxe5 {[%clk 0:00:00]} 7. dxe5 {[%clk 0:00:00]}  Nc5 {[%clk 0:00:00]} 8. O-O {[%clk 0:00:00]}  Nxd3 {[%clk 0:00:00]} 9. cxd3 {[%clk 0:00:00]}  Be7 {[%clk 0:00:00]} 10. f4 {[%clk 0:00:00]}  g6 {[%clk 0:00:00]} 11. Nc3 {[%clk 0:00:00]}  c6 {[%clk 0:00:00]} 12. Bd2 {[%clk 0:00:00]}  h5 {[%clk 0:00:00]} 13. h3 {[%clk 0:00:00]}  Be6 {[%clk 0:00:00]} 14. Nd1 {[%clk 0:00:00]}  Qb6+ {[%clk 0:00:00]} 15. Kh2 {[%clk 0:00:00]}  O-O-O {[%clk 0:00:00]} 16. a4 {[%clk 0:00:00]}  a5 {[%clk 0:00:00]} 17. Be3 {[%clk 0:00:00]}  Bc5 {[%clk 0:00:00]} 18. Rc1 {[%clk 0:00:00]}  d4 {[%clk 0:00:00]} 19. Bg1 {[%clk 0:00:00]}  Bd5 {[%clk 0:00:00]} 20. Nf2 {[%clk 0:00:00]}  Bb4 {[%clk 0:00:00]} 21. Ne4 {[%clk 0:00:00]}  Rhe8 {[%clk 0:00:00]} 22. Nf6 {[%clk 0:00:00]}  Re6 {[%clk 0:00:00]} 23. Kh1 {[%clk 0:00:00]}  Qc7 {[%clk 0:00:00]} 24. Bh2 {[%clk 0:00:00]}  Qe7 {[%clk 0:00:00]} 25. Nxd5 {[%clk 0:00:00]}  Rxd5 {[%clk 0:00:00]} 26. f5 {[%clk 0:00:00]}  gxf5 {[%clk 0:00:00]} 27. Qxh5 {[%clk 0:00:00]}  Bd2 {[%clk 0:00:00]} 28. Rcd1 {[%clk 0:00:00]}  Be3 {[%clk 0:00:00]} 29. Rxf5 {[%clk 0:00:00]}  Rd7 {[%clk 0:00:00]} 30. Rdf1 {[%clk 0:00:00]}  Rg6 {[%clk 0:00:00]} 31. Qh8+ {[%clk 0:00:00]}  Rd8 {[%clk 0:00:00]} 32. Qh7 {[%clk 0:00:00]}  Qd7 {[%clk 0:00:00]} 33. Rxf7 {[%clk 0:00:00]}  Rh6 {[%clk 0:00:00]} 34. Rxd7 {[%clk 0:00:00]}  Rxd7 {[%clk 0:00:00]} 35. Rf8+ {[%clk 0:00:00]}  Rd8 {[%clk 0:00:00]} 36. Rxd8+ {[%clk 0:00:00]}  Kxd8 {[%clk 0:00:00]} 37. Qg8+ {[%clk 0:00:00]}  Kd7 {[%clk 0:00:00]} 38. Qf7+ {[%clk 0:00:00]}  Kd8 {[%clk 0:00:00]} 39. e6 {[%clk 0:00:00]}  Bf4 {[%clk 0:00:00]} 40. Qd7# {[%clk 0:00:00]} 1-0


[Site "https://www.chess.com"]

[Event "Titled Tuesday Blitz August 16 Early 2022"]
[White "Atakhan, Abtin"]
[Black "Reprintsev, Alexander"]
[WhiteFideId "22502203"]
[BlackFideId "14100541"]
[WhiteElo "2087"]
[BlackElo "2108"]
[Result "1-0"]
[Round "08"]
[TimeControl "180+1"]
[Date "2022.08.16"]
[WhiteClock "0:00:02"]
[BlackClock "0:00:01"]

1. e4 {[%clk 0:03:00]}  d5 {[%clk 0:02:59]} 2. exd5 {[%clk 0:03:01]}  Qxd5 {[%clk 0:02:56]} 3. Nc3 {[%clk 0:03:01]}  Qa5 {[%clk 0:02:56]} 4. d4 {[%clk 0:03:00]}  Nf6 {[%clk 0:02:57]} 5. Nf3 {[%clk 0:02:47]}  Nc6 {[%clk 0:02:56]} 6. Bd2 {[%clk 0:02:44]}  a6 {[%clk 0:02:56]} 7. Bc4 {[%clk 0:02:39]}  Qh5 {[%clk 0:02:55]} 8. Ne5 {[%clk 0:02:34]}  Bg4 {[%clk 0:02:48]} 9. Nxg4 {[%clk 0:02:19]}  Qxg4 {[%clk 0:02:47]} 10. Qxg4 {[%clk 0:02:18]}  Nxg4 {[%clk 0:02:47]} 11. h3 {[%clk 0:02:14]}  Nf6 {[%clk 0:02:47]} 12. Bg5 {[%clk 0:02:01]}  Nxd4 {[%clk 0:02:43]} 13. O-O-O {[%clk 0:02:01]}  Nf5 {[%clk 0:02:22]} 14. Rhe1 {[%clk 0:01:48]}  Nd6 {[%clk 0:02:21]} 15. Bxf6 {[%clk 0:01:23]}  gxf6 {[%clk 0:02:08]} 16. Nd5 {[%clk 0:01:17]}  O-O-O {[%clk 0:02:03]} 17. Bb3 {[%clk 0:01:16]}  Rd7 {[%clk 0:01:51]} 18. Kb1 {[%clk 0:01:04]}  f5 {[%clk 0:01:48]} 19. c4 {[%clk 0:01:00]}  b6 {[%clk 0:01:39]} 20. Ba4 {[%clk 0:00:57]}  b5 {[%clk 0:01:35]} 21. cxb5 {[%clk 0:00:57]}  axb5 {[%clk 0:01:35]} 22. Bc2 {[%clk 0:00:54]}  e6 {[%clk 0:01:35]} 23. Nf6 {[%clk 0:00:52]}  Rd8 {[%clk 0:01:35]} 24. g4 {[%clk 0:00:49]}  Be7 {[%clk 0:01:20]} 25. Nd5 {[%clk 0:00:44]}  Bh4 {[%clk 0:01:16]} 26. Nb4 {[%clk 0:00:30]}  Bxf2 {[%clk 0:01:13]} 27. Rf1 {[%clk 0:00:30]}  Bc5 {[%clk 0:01:13]} 28. Nd3 {[%clk 0:00:31]}  Bb6 {[%clk 0:01:13]} 29. Ne5 {[%clk 0:00:30]}  Rhf8 {[%clk 0:01:06]} 30. gxf5 {[%clk 0:00:30]}  f6 {[%clk 0:01:06]} 31. Nc6 {[%clk 0:00:30]}  Rde8 {[%clk 0:00:59]} 32. fxe6 {[%clk 0:00:25]}  Rxe6 {[%clk 0:00:58]} 33. Bxh7 {[%clk 0:00:22]}  Kb7 {[%clk 0:00:57]} 34. Nd4 {[%clk 0:00:17]}  Bxd4 {[%clk 0:00:56]} 35. Rxd4 {[%clk 0:00:18]}  f5 {[%clk 0:00:56]} 36. Rdf4 {[%clk 0:00:18]}  Ref6 {[%clk 0:00:45]} 37. h4 {[%clk 0:00:18]}  R8f7 {[%clk 0:00:45]} 38. Bg8 {[%clk 0:00:16]}  Rg7 {[%clk 0:00:44]} 39. Bd5+ {[%clk 0:00:16]}  c6 {[%clk 0:00:44]} 40. Bb3 {[%clk 0:00:13]}  Rfg6 {[%clk 0:00:39]} 41. Bc2 {[%clk 0:00:13]}  Rg1 {[%clk 0:00:15]} 42. Bxf5 {[%clk 0:00:13]}  Rxf1+ {[%clk 0:00:14]} 43. Rxf1 {[%clk 0:00:13]}  Rf7 {[%clk 0:00:13]} 44. Bd3 {[%clk 0:00:12]}  Re7 {[%clk 0:00:10]} 45. h5 {[%clk 0:00:11]}  Re3 {[%clk 0:00:11]} 46. Kc2 {[%clk 0:00:09]}  Rh3 {[%clk 0:00:11]} 47. Bg6 {[%clk 0:00:08]}  Kb6 {[%clk 0:00:10]} 48. a3 {[%clk 0:00:07]}  Nc4 {[%clk 0:00:10]} 49. Rf2 {[%clk 0:00:06]}  Ne3+ {[%clk 0:00:10]} 50. Kd2 {[%clk 0:00:05]}  Nc4+ {[%clk 0:00:08]} 51. Kc1 {[%clk 0:00:05]}  Rh1+ {[%clk 0:00:08]} 52. Kc2 {[%clk 0:00:05]}  Ne3+ {[%clk 0:00:07]} 53. Kd3 {[%clk 0:00:06]}  Nd1 {[%clk 0:00:06]} 54. Rg2 {[%clk 0:00:05]}  Rh4 {[%clk 0:00:04]} 55. Rd2 {[%clk 0:00:04]}  Rh1 {[%clk 0:00:03]} 56. Ke2 {[%clk 0:00:03]}  Nxb2 {[%clk 0:00:01]} 57. Kf3 {[%clk 0:00:01]}  Nc4 {[%clk 0:00:01]} 58. Re2 {[%clk 0:00:01]}  Nxa3 {[%clk 0:00:01]} 59. Kg2 {[%clk 0:00:02]}  Rh4 {[%clk 0:00:01]} 60. Kg3 {[%clk 0:00:02]} 1-0


[Site "https://www.chess.com"]

[Event "Titled Tuesday Blitz August 16 Early 2022"]
[White "Averjanov, Alexey"]
[Black "Filippova, Margarita"]
[WhiteFideId "14109867"]
[BlackFideId "34199680"]
[WhiteElo "2399"]
[BlackElo "1734"]
[Result "1-0"]
[Round "08"]
[TimeControl "180+2"]
[Date "2022.08.18"]
[WhiteClock "0:00:00"]
[BlackClock "0:00:00"]

1. d4 {[%clk 0:00:00]}  Nf6 {[%clk 0:00:00]} 2. c4 {[%clk 0:00:00]}  e6 {[%clk 0:00:00]} 3. Nf3 {[%clk 0:00:00]}  Bb4+ {[%clk 0:00:00]} 4. Nbd2 {[%clk 0:00:00]}  O-O {[%clk 0:00:00]} 5. g3 {[%clk 0:00:00]}  Re8 {[%clk 0:00:00]} 6. Bg2 {[%clk 0:00:00]}  c5 {[%clk 0:00:00]} 7. O-O {[%clk 0:00:00]}  Nc6 {[%clk 0:00:00]} 8. a3 {[%clk 0:00:00]}  Bxd2 {[%clk 0:00:00]} 9. Qxd2 {[%clk 0:00:00]}  cxd4 {[%clk 0:00:00]} 10. Nxd4 {[%clk 0:00:00]}  Qb6 {[%clk 0:00:00]} 11. Nb5 {[%clk 0:00:00]}  Ne5 {[%clk 0:00:00]} 12. Nd6 {[%clk 0:00:00]}  Rf8 {[%clk 0:00:00]} 13. b4 {[%clk 0:00:00]}  Qd8 {[%clk 0:00:00]} 14. Bb2 {[%clk 0:00:00]}  Ng6 {[%clk 0:00:00]} 15. Nxb7 {[%clk 0:00:00]}  Bxb7 {[%clk 0:00:00]} 16. Bxb7 {[%clk 0:00:00]}  Rb8 {[%clk 0:00:00]} 17. Bg2 {[%clk 0:00:00]}  a5 {[%clk 0:00:00]} 18. Bc3 {[%clk 0:00:00]}  d5 {[%clk 0:00:00]} 19. Bxf6 {[%clk 0:00:00]}  Qxf6 {[%clk 0:00:00]} 20. cxd5 {[%clk 0:00:00]}  exd5 {[%clk 0:00:00]} 21. bxa5 {[%clk 0:00:00]}  d4 {[%clk 0:00:00]} 22. Rab1 {[%clk 0:00:00]}  Qa6 {[%clk 0:00:00]} 23. Qxd4 {[%clk 0:00:00]}  Qxa5 {[%clk 0:00:00]} 24. a4 {[%clk 0:00:00]}  h6 {[%clk 0:00:00]} 25. h4 {[%clk 0:00:00]}  Ne5 {[%clk 0:00:00]} 26. Rfc1 {[%clk 0:00:00]}  Rxb1 {[%clk 0:00:00]} 27. Rxb1 {[%clk 0:00:00]}  Rd8 {[%clk 0:00:00]} 28. Qe4 {[%clk 0:00:00]}  Nd7 {[%clk 0:00:00]} 29. Rd1 {[%clk 0:00:00]}  Nc5 {[%clk 0:00:00]} 30. Rxd8+ {[%clk 0:00:00]}  Qxd8 {[%clk 0:00:00]} 31. Qc4 {[%clk 0:00:00]}  Qd1+ {[%clk 0:00:00]} 32. Kh2 {[%clk 0:00:00]}  Nxa4 {[%clk 0:00:00]} 33. Qc8+ {[%clk 0:00:00]}  Kh7 {[%clk 0:00:00]} 34. Qf5+ {[%clk 0:00:00]}  Kg8 {[%clk 0:00:00]} 35. Bd5 {[%clk 0:00:00]}  Qxe2 {[%clk 0:00:00]} 36. Bxf7+ {[%clk 0:00:00]}  Kh8 {[%clk 0:00:00]} 37. Qc8+ {[%clk 0:00:00]}  Kh7 {[%clk 0:00:00]} 38. Qg8# {[%clk 0:00:00]} 1-0


[Site "https://www.chess.com"]

[Event "Titled Tuesday Blitz August 16 Early 2022"]
[White "Barria Zuniga, Daniel"]
[Black "Prydun, Andriy"]
[WhiteFideId "3400816"]
[BlackFideId "14145898"]
[WhiteElo "2414"]
[BlackElo "2163"]
[Result "1-0"]
[Round "08"]
[TimeControl "180+2"]
[Date "2022.08.18"]
[WhiteClock "0:00:00"]
[BlackClock "0:00:00"]

1. d4 {[%clk 0:00:00]}  Nf6 {[%clk 0:00:00]} 2. c4 {[%clk 0:00:00]}  c5 {[%clk 0:00:00]} 3. d5 {[%clk 0:00:00]}  e5 {[%clk 0:00:00]} 4. Nc3 {[%clk 0:00:00]}  d6 {[%clk 0:00:00]} 5. e4 {[%clk 0:00:00]}  Nbd7 {[%clk 0:00:00]} 6. Nf3 {[%clk 0:00:00]}  Be7 {[%clk 0:00:00]} 7. Be2 {[%clk 0:00:00]}  Nf8 {[%clk 0:00:00]} 8. O-O {[%clk 0:00:00]}  Ng6 {[%clk 0:00:00]} 9. Ne1 {[%clk 0:00:00]}  O-O {[%clk 0:00:00]} 10. Nd3 {[%clk 0:00:00]}  a6 {[%clk 0:00:00]} 11. a3 {[%clk 0:00:00]}  b5 {[%clk 0:00:00]} 12. b3 {[%clk 0:00:00]}  Rb8 {[%clk 0:00:00]} 13. f3 {[%clk 0:00:00]}  Nh5 {[%clk 0:00:00]} 14. g3 {[%clk 0:00:00]}  f5 {[%clk 0:00:00]} 15. exf5 {[%clk 0:00:00]}  Bxf5 {[%clk 0:00:00]} 16. Nf2 {[%clk 0:00:00]}  Bd7 {[%clk 0:00:00]} 17. Nfe4 {[%clk 0:00:00]}  Rf7 {[%clk 0:00:00]} 18. Be3 {[%clk 0:00:00]}  Qc7 {[%clk 0:00:00]} 19. Rc1 {[%clk 0:00:00]}  Bh3 {[%clk 0:00:00]} 20. Re1 {[%clk 0:00:00]}  Nf6 {[%clk 0:00:00]} 21. Ng5 {[%clk 0:00:00]}  Bd7 {[%clk 0:00:00]} 22. Nxf7 {[%clk 0:00:00]}  Kxf7 {[%clk 0:00:00]} 23. Ne4 {[%clk 0:00:00]}  Qa5 {[%clk 0:00:00]} 24. Qc2 {[%clk 0:00:00]}  b4 {[%clk 0:00:00]} 25. a4 {[%clk 0:00:00]}  h6 {[%clk 0:00:00]} 26. Bd3 {[%clk 0:00:00]}  Nf8 {[%clk 0:00:00]} 27. Rf1 {[%clk 0:00:00]}  Kg8 {[%clk 0:00:00]} 28. f4 {[%clk 0:00:00]}  Ng4 {[%clk 0:00:00]} 29. Rce1 {[%clk 0:00:00]}  Nxe3 {[%clk 0:00:00]} 30. Rxe3 {[%clk 0:00:00]}  exf4 {[%clk 0:00:00]} 31. Rxf4 {[%clk 0:00:00]}  Qd8 {[%clk 0:00:00]} 32. Ref3 {[%clk 0:00:00]}  Ng6 {[%clk 0:00:00]} 33. Nf6+ {[%clk 0:00:00]}  Bxf6 {[%clk 0:00:00]} 34. Bxg6 {[%clk 0:00:00]}  Qe7 {[%clk 0:00:00]} 35. Bf5 {[%clk 0:00:00]}  Re8 {[%clk 0:00:00]} 36. Bxd7 {[%clk 0:00:00]}  Qxd7 {[%clk 0:00:00]} 37. Re4 {[%clk 0:00:00]}  Re5 {[%clk 0:00:00]} 38. Rxe5 {[%clk 0:00:00]}  Bxe5 {[%clk 0:00:00]} 39. Qf5 {[%clk 0:00:00]}  Qxf5 {[%clk 0:00:00]} 40. Rxf5 {[%clk 0:00:00]}  g6 {[%clk 0:00:00]} 41. Rf3 {[%clk 0:00:00]}  Kg7 {[%clk 0:00:00]} 42. Kf1 {[%clk 0:00:00]}  h5 {[%clk 0:00:00]} 43. Ke2 {[%clk 0:00:00]}  Bf6 {[%clk 0:00:00]} 44. Kd3 {[%clk 0:00:00]}  Be7 {[%clk 0:00:00]} 45. Ke4 {[%clk 0:00:00]}  a5 {[%clk 0:00:00]} 46. Kd3 {[%clk 0:00:00]}  Bf6 {[%clk 0:00:00]} 47. Re3 {[%clk 0:00:00]}  Be7 {[%clk 0:00:00]} 48. Rxe7+ {[%clk 0:00:00]} 1-0


[Site "https://www.chess.com"]

[Event "Titled Tuesday Blitz August 16 Early 2022"]
[White "Barrientos, Sergio E"]
[Black "Ramirez Vido, Robert Yorisan"]
[WhiteFideId "4401824"]
[BlackFideId "3513823"]
[WhiteElo "2397"]
[BlackElo "2488"]
[Result "0-1"]
[Round "08"]
[TimeControl "180+1"]
[Date "2022.08.16"]
[WhiteClock "0:01:44"]
[BlackClock "0:00:56"]

1. d4 {[%clk 0:01:45]}  g6 {[%clk 0:02:59]} 2. e4 {[%clk 0:01:45]}  d6 {[%clk 0:02:59]} 3. Nc3 {[%clk 0:01:46]}  Nf6 {[%clk 0:02:59]} 4. Be3 {[%clk 0:01:47]}  c6 {[%clk 0:02:59]} 5. h4 {[%clk 0:01:48]}  Qa5 {[%clk 0:02:56]} 6. h5 {[%clk 0:01:49]}  Nxh5 {[%clk 0:02:55]} 7. Rxh5 {[%clk 0:01:49]}  Qxh5 {[%clk 0:02:52]} 8. Nf3 {[%clk 0:01:49]}  Bg7 {[%clk 0:02:47]} 9. Qd2 {[%clk 0:01:48]}  Qa5 {[%clk 0:02:45]} 10. O-O-O {[%clk 0:01:48]}  Bg4 {[%clk 0:02:43]} 11. Kb1 {[%clk 0:01:48]}  Nd7 {[%clk 0:02:43]} 12. Bc4 {[%clk 0:01:48]}  e6 {[%clk 0:02:33]} 13. Bb3 {[%clk 0:01:48]}  O-O-O {[%clk 0:02:28]} 14. Rh1 {[%clk 0:01:48]}  Bxf3 {[%clk 0:02:27]} 15. gxf3 {[%clk 0:01:49]}  h5 {[%clk 0:02:23]} 16. a3 {[%clk 0:01:49]}  h4 {[%clk 0:02:21]} 17. Bg5 {[%clk 0:01:49]}  Bf6 {[%clk 0:02:20]} 18. Be3 {[%clk 0:01:49]}  h3 {[%clk 0:02:20]} 19. Qe2 {[%clk 0:01:49]}  c5 {[%clk 0:02:11]} 20. d5 {[%clk 0:01:49]}  Bxc3 {[%clk 0:01:57]} 21. dxe6 {[%clk 0:01:49]}  fxe6 {[%clk 0:01:50]} 22. bxc3 {[%clk 0:01:49]}  Qxc3 {[%clk 0:01:22]} 23. Bxe6 {[%clk 0:01:48]}  h2 {[%clk 0:01:17]} 24. Bf4 {[%clk 0:01:47]}  Qf6 {[%clk 0:01:10]} 25. Bxd7+ {[%clk 0:01:41]}  Rxd7 {[%clk 0:01:08]} 26. Rxh2 {[%clk 0:01:42]}  Rxh2 {[%clk 0:01:05]} 27. Bxh2 {[%clk 0:01:43]}  Rh7 {[%clk 0:01:03]} 28. Bg3 {[%clk 0:01:43]}  Rh1+ {[%clk 0:01:02]} 29. Ka2 {[%clk 0:01:44]}  Qa1+ {[%clk 0:00:58]} 30. Kb3 {[%clk 0:01:44]}  Rb1+ {[%clk 0:00:56]} 31. Kc4 {[%clk 0:01:44]}  Qd4# {[%clk 0:00:56]} 0-1


[Site "https://www.chess.com"]

[Event "Titled Tuesday Blitz August 16 Early 2022"]
[White "Broca Jimenez, Fernando"]
[Black "Gonzalez Vega, Alejandro"]
[WhiteFideId "5104742"]
[BlackFideId "3510042"]
[WhiteElo "2062"]
[BlackElo "2092"]
[Result "1-0"]
[Round "08"]
[TimeControl "180+2"]
[Date "2022.08.18"]
[WhiteClock "0:00:00"]
[BlackClock "0:00:00"]

1. e4 {[%clk 0:00:00]}  c5 {[%clk 0:00:00]} 2. d4 {[%clk 0:00:00]}  cxd4 {[%clk 0:00:00]} 3. c3 {[%clk 0:00:00]}  dxc3 {[%clk 0:00:00]} 4. Nxc3 {[%clk 0:00:00]}  Nc6 {[%clk 0:00:00]} 5. Bc4 {[%clk 0:00:00]}  e6 {[%clk 0:00:00]} 6. Nf3 {[%clk 0:00:00]}  Qc7 {[%clk 0:00:00]} 7. Qe2 {[%clk 0:00:00]}  Nf6 {[%clk 0:00:00]} 8. O-O {[%clk 0:00:00]}  Ng4 {[%clk 0:00:00]} 9. g3 {[%clk 0:00:00]}  a6 {[%clk 0:00:00]} 10. Bf4 {[%clk 0:00:00]}  d6 {[%clk 0:00:00]} 11. h3 {[%clk 0:00:00]}  Nge5 {[%clk 0:00:00]} 12. Bb3 {[%clk 0:00:00]}  Be7 {[%clk 0:00:00]} 13. Rac1 {[%clk 0:00:00]}  O-O {[%clk 0:00:00]} 14. Kg2 {[%clk 0:00:00]}  Bd7 {[%clk 0:00:00]} 15. Nd5 {[%clk 0:00:00]}  exd5 {[%clk 0:00:00]} 16. exd5 {[%clk 0:00:00]}  Bf6 {[%clk 0:00:00]} 17. dxc6 {[%clk 0:00:00]}  Bxc6 {[%clk 0:00:00]} 18. Bd5 {[%clk 0:00:00]}  Rfe8 {[%clk 0:00:00]} 19. Bxc6 {[%clk 0:00:00]}  Nxc6 {[%clk 0:00:00]} 20. Qd3 {[%clk 0:00:00]}  Qb6 {[%clk 0:00:00]} 21. b3 {[%clk 0:00:00]}  Ne5 {[%clk 0:00:00]} 22. Nxe5 {[%clk 0:00:00]}  dxe5 {[%clk 0:00:00]} 23. Be3 {[%clk 0:00:00]}  Qb5 {[%clk 0:00:00]} 24. Qxb5 {[%clk 0:00:00]}  axb5 {[%clk 0:00:00]} 25. Rc2 {[%clk 0:00:00]}  h6 {[%clk 0:00:00]} 26. Rd1 {[%clk 0:00:00]}  Re7 {[%clk 0:00:00]} 27. Rd5 {[%clk 0:00:00]}  b4 {[%clk 0:00:00]} 28. Rb5 {[%clk 0:00:00]}  g5 {[%clk 0:00:00]} 29. Rxb4 {[%clk 0:00:00]}  Kg7 {[%clk 0:00:00]} 30. a4 {[%clk 0:00:00]}  Ra6 {[%clk 0:00:00]} 31. Rb6 {[%clk 0:00:00]}  Rxb6 {[%clk 0:00:00]} 32. Bxb6 {[%clk 0:00:00]}  Re6 {[%clk 0:00:00]} 33. a5 {[%clk 0:00:00]}  e4 {[%clk 0:00:00]} 34. Rc7 {[%clk 0:00:00]}  e3 {[%clk 0:00:00]} 35. Bxe3 {[%clk 0:00:00]}  Re7 {[%clk 0:00:00]} 36. Bb6 {[%clk 0:00:00]}  Rxc7 {[%clk 0:00:00]} 37. Bxc7 {[%clk 0:00:00]}  Bd4 {[%clk 0:00:00]} 38. f4 {[%clk 0:00:00]}  f6 {[%clk 0:00:00]} 39. fxg5 {[%clk 0:00:00]}  hxg5 {[%clk 0:00:00]} 40. Kf3 {[%clk 0:00:00]}  f5 {[%clk 0:00:00]} 41. h4 {[%clk 0:00:00]}  gxh4 {[%clk 0:00:00]} 42. gxh4 {[%clk 0:00:00]}  Kg6 {[%clk 0:00:00]} 43. Kf4 {[%clk 0:00:00]}  Bf2 {[%clk 0:00:00]} 44. Bd8 {[%clk 0:00:00]}  Be1 {[%clk 0:00:00]} 45. h5+ {[%clk 0:00:00]}  Kxh5 {[%clk 0:00:00]} 46. Kxf5 {[%clk 0:00:00]}  Bb4 {[%clk 0:00:00]} 47. Ke6 {[%clk 0:00:00]}  Kg6 {[%clk 0:00:00]} 48. Kd7 {[%clk 0:00:00]}  Kf7 {[%clk 0:00:00]} 49. Kc8 {[%clk 0:00:00]}  Ke6 {[%clk 0:00:00]} 50. Kxb7 {[%clk 0:00:00]}  Kd7 {[%clk 0:00:00]} 51. Bb6 {[%clk 0:00:00]}  Bc3 {[%clk 0:00:00]} 52. a6 {[%clk 0:00:00]} 1-0


[Site "https://www.chess.com"]

[Event "Titled Tuesday Blitz August 16 Early 2022"]
[White "Ciuffoletti, Paolo"]
[Black "Rosenberg, Evan S"]
[WhiteFideId "807630"]
[BlackFideId "2019299"]
[WhiteElo "2143"]
[BlackElo "1999"]
[Result "0-1"]
[Round "08"]
[TimeControl "180+2"]
[Date "2022.08.18"]
[WhiteClock "0:00:00"]
[BlackClock "0:00:00"]

1. e4 {[%clk 0:00:00]}  e6 {[%clk 0:00:00]} 2. d4 {[%clk 0:00:00]}  d5 {[%clk 0:00:00]} 3. e5 {[%clk 0:00:00]}  c5 {[%clk 0:00:00]} 4. c3 {[%clk 0:00:00]}  Nc6 {[%clk 0:00:00]} 5. Nf3 {[%clk 0:00:00]}  Qb6 {[%clk 0:00:00]} 6. a3 {[%clk 0:00:00]}  c4 {[%clk 0:00:00]} 7. Nbd2 {[%clk 0:00:00]}  Na5 {[%clk 0:00:00]} 8. Rb1 {[%clk 0:00:00]}  Bd7 {[%clk 0:00:00]} 9. Be2 {[%clk 0:00:00]}  Ne7 {[%clk 0:00:00]} 10. O-O {[%clk 0:00:00]}  Nc8 {[%clk 0:00:00]} 11. Re1 {[%clk 0:00:00]}  Qc7 {[%clk 0:00:00]} 12. Nf1 {[%clk 0:00:00]}  Nb3 {[%clk 0:00:00]} 13. Bf4 {[%clk 0:00:00]}  h6 {[%clk 0:00:00]} 14. N3d2 {[%clk 0:00:00]}  Ba4 {[%clk 0:00:00]} 15. Nxb3 {[%clk 0:00:00]}  Bxb3 {[%clk 0:00:00]} 16. Qd2 {[%clk 0:00:00]}  Be7 {[%clk 0:00:00]} 17. Qe3 {[%clk 0:00:00]}  Nb6 {[%clk 0:00:00]} 18. Nd2 {[%clk 0:00:00]}  Bc2 {[%clk 0:00:00]} 19. Rbc1 {[%clk 0:00:00]}  Bg6 {[%clk 0:00:00]} 20. Bd1 {[%clk 0:00:00]}  O-O {[%clk 0:00:00]} 21. Qg3 {[%clk 0:00:00]}  Kh7 {[%clk 0:00:00]} 22. h4 {[%clk 0:00:00]}  Qd8 {[%clk 0:00:00]} 23. h5 {[%clk 0:00:00]}  Bd3 {[%clk 0:00:00]} 24. Bc2 {[%clk 0:00:00]}  Bxc2 {[%clk 0:00:00]} 25. Rxc2 {[%clk 0:00:00]}  Bg5 {[%clk 0:00:00]} 26. Nf3 {[%clk 0:00:00]}  Bxf4 {[%clk 0:00:00]} 27. Qxf4 {[%clk 0:00:00]}  Qe7 {[%clk 0:00:00]} 28. g4 {[%clk 0:00:00]}  f6 {[%clk 0:00:00]} 29. Qg3 {[%clk 0:00:00]}  f5 {[%clk 0:00:00]} 30. g5 {[%clk 0:00:00]}  f4 {[%clk 0:00:00]} 31. Qg4 {[%clk 0:00:00]}  Rf5 {[%clk 0:00:00]} 32. g6+ {[%clk 0:00:00]}  Kh8 {[%clk 0:00:00]} 33. Nh4 {[%clk 0:00:00]}  Rg5 {[%clk 0:00:00]} 0-1


[Site "https://www.chess.com"]

[Event "Titled Tuesday Blitz August 16 Early 2022"]
[White "Clawitter, Craig"]
[Black "Rios Escobar, Adan"]
[WhiteFideId "2023105"]
[BlackFideId "3403645"]
[WhiteElo "2050"]
[BlackElo "2276"]
[Result "1-0"]
[Round "08"]
[TimeControl "180+2"]
[Date "2022.08.18"]
[WhiteClock "0:00:00"]
[BlackClock "0:00:00"]

1. e4 {[%clk 0:00:00]}  c5 {[%clk 0:00:00]} 2. Nf3 {[%clk 0:00:00]}  d6 {[%clk 0:00:00]} 3. d4 {[%clk 0:00:00]}  cxd4 {[%clk 0:00:00]} 4. Nxd4 {[%clk 0:00:00]}  Nf6 {[%clk 0:00:00]} 5. Nc3 {[%clk 0:00:00]}  a6 {[%clk 0:00:00]} 6. Be3 {[%clk 0:00:00]}  e5 {[%clk 0:00:00]} 7. Nb3 {[%clk 0:00:00]}  Be7 {[%clk 0:00:00]} 8. f3 {[%clk 0:00:00]}  Be6 {[%clk 0:00:00]} 9. Qd2 {[%clk 0:00:00]}  h5 {[%clk 0:00:00]} 10. Be2 {[%clk 0:00:00]}  a5 {[%clk 0:00:00]} 11. Nd5 {[%clk 0:00:00]}  Bxd5 {[%clk 0:00:00]} 12. exd5 {[%clk 0:00:00]}  a4 {[%clk 0:00:00]} 13. Nc1 {[%clk 0:00:00]}  Nbd7 {[%clk 0:00:00]} 14. c4 {[%clk 0:00:00]}  Qa5 {[%clk 0:00:00]} 15. Qxa5 {[%clk 0:00:00]}  Rxa5 {[%clk 0:00:00]} 16. Nd3 {[%clk 0:00:00]}  O-O {[%clk 0:00:00]} 17. Kd2 {[%clk 0:00:00]}  Rc8 {[%clk 0:00:00]} 18. Rhc1 {[%clk 0:00:00]}  b6 {[%clk 0:00:00]} 19. Rab1 {[%clk 0:00:00]}  Nc5 {[%clk 0:00:00]} 20. Nb4 {[%clk 0:00:00]}  Raa8 {[%clk 0:00:00]} 21. Nc6 {[%clk 0:00:00]}  Bd8 {[%clk 0:00:00]} 22. b4 {[%clk 0:00:00]}  axb3 {[%clk 0:00:00]} 23. axb3 {[%clk 0:00:00]}  Ra3 {[%clk 0:00:00]} 24. Rc3 {[%clk 0:00:00]}  Nfe4+ {[%clk 0:00:00]} 25. fxe4 {[%clk 0:00:00]}  Nxe4+ {[%clk 0:00:00]} 26. Kd3 {[%clk 0:00:00]}  Nxc3 {[%clk 0:00:00]} 27. Kxc3 {[%clk 0:00:00]}  f5 {[%clk 0:00:00]} 28. Nxd8 {[%clk 0:00:00]}  Rxd8 {[%clk 0:00:00]} 29. Bxb6 {[%clk 0:00:00]}  Rc8 {[%clk 0:00:00]} 30. Bxh5 {[%clk 0:00:00]}  Ra2 {[%clk 0:00:00]} 31. Rb2 {[%clk 0:00:00]}  Ra1 {[%clk 0:00:00]} 32. Rf2 {[%clk 0:00:00]}  Rf8 {[%clk 0:00:00]} 33. b4 {[%clk 0:00:00]}  g5 {[%clk 0:00:00]} 34. c5 {[%clk 0:00:00]}  Rf6 {[%clk 0:00:00]} 35. Bd8 {[%clk 0:00:00]}  Rh6 {[%clk 0:00:00]} 36. Be2 {[%clk 0:00:00]}  dxc5 {[%clk 0:00:00]} 37. bxc5 {[%clk 0:00:00]}  Rc1+ {[%clk 0:00:00]} 38. Kb4 {[%clk 0:00:00]}  Rh4+ {[%clk 0:00:00]} 39. Kb5 {[%clk 0:00:00]} 1-0


[Site "https://www.chess.com"]